fUSD/lending_fUSD_20250112
["ID","MTS","AMOUNT","RATE_DAILY","PERIOD"]
[348626974,1736687441431,-500.0,9.976e-05,2]
[348626975,1736687441446,-944.43,9.976e-05,2]
[348626976,1736687441457,-568.58,9.976e-05,2]
[348626977,1736687441467,-500.0,9.976e-05,2]
[348626978,1736687441477,-500.0,9.976e-05,2]
[348626979,1736687441486,-500.0,9.976e-05,2]
[348626980,1736687441496,-500.0,9.976e-05,2]
[348626981,1736687441505,-500.0,9.976e-05,2]
[348626982,1736687441515,-666.11,9.976e-05,2]
[348626983,1736687441524,-500.0,9.976e-05,2]
[348626984,1736687441534,-342.24405032,9.976e-05,2]
[348626985,1736687441543,-500.0,9.976e-05,2]
[348626986,1736687441552,-500.0,9.976e-05,2]
[348626987,1736687441561,-500.0,9.976e-05,2]
[348626988,1736687441570,-500.0,9.976e-05,2]
[348626989,1736687441580,-500.0,9.976e-05,2]
[348626990,1736687441590,-500.0,9.976e-05,2]
[348626991,1736687441600,-504.4000336,9.976e-05,2]
[348626992,1736687441610,-543.93,9.976e-05,2]
[348626993,1736687441619,-500.0,9.976e-05,2]
[348626994,1736687441631,-500.0,9.976e-05,2]
[348626995,1736687441640,-500.0,9.976e-05,2]
[348626996,1736687441649,-575.02,9.976e-05,2]
[348626997,1736687441658,-532.01,9.976e-05,2]
[348626998,1736687441668,-500.0,9.976e-05,2]
[348626999,1736687441677,-922.0,9.976e-05,2]
[348627000,1736687441687,-500.0,9.976e-05,2]
[348627001,1736687441699,-500.0,9.976e-05,2]
[348627002,1736687441708,-500.0,9.976e-05,2]
[348627003,1736687441718,-388.95350364,9.976e-05,2]
[348627004,1736687441729,-500.0,9.976e-05,2]
[348627005,1736687441739,-735.6,9.976e-05,2]
[348627006,1736687441748,-500.0,9.976e-05,2]
[348627007,1736687441757,-500.0,9.976e-05,2]
[348627008,1736687441767,-503.5772262,9.976e-05,2]
[348627009,1736687441776,-500.0,9.976e-05,2]
[348627010,1736687441786,-500.0,9.976e-05,2]
[348627011,1736687441795,-503.53300013,9.976e-05,2]
[348627012,1736687441805,-500.0,9.976e-05,2]
[348627013,1736687441816,-500.0,9.976e-05,2]
[348627014,1736687441827,-500.0,9.976e-05,2]
[348627015,1736687441836,-1036.2,9.976e-05,2]
[348627016,1736687441845,-500.0,9.976e-05,2]
[348627017,1736687441855,-507.21,9.976e-05,2]
[348627018,1736687441864,-930.85,9.976e-05,2]
[348627019,1736687441873,-500.0,9.976e-05,2]
[348627020,1736687441882,-500.0,9.976e-05,2]
[348627021,1736687441891,-607.85,9.976e-05,2]
[348627022,1736687441900,-500.0,9.976e-05,2]
[348627023,1736687441909,-500.0,9.976e-05,2]
[348627024,1736687441919,-500.0,9.976e-05,2]
[348627025,1736687441928,-820.29,9.976e-05,2]
[348627026,1736687441936,-538.8,9.976e-05,2]
[348627027,1736687441947,-507.71131491,9.976e-05,2]
[348627028,1736687441956,-952.91,9.976e-05,2]
[348627029,1736687441965,-500.0,9.976e-05,2]
[348627030,1736687441974,-557.77,9.976e-05,2]
[348627031,1736687441984,-500.0,9.976e-05,2]
[348627032,1736687441993,-399.75935695,9.976e-05,2]
[348627033,1736687442002,-500.0,9.976e-05,2]
[348627034,1736687442012,-503.8695343,9.976e-05,2]
[348627035,1736687442021,-500.0,9.976e-05,2]
[348627036,1736687442031,-500.0,9.976e-05,2]
[348627037,1736687442040,-500.0,9.976e-05,2]
[348627038,1736687442050,-522.69,9.976e-05,2]
[348627039,1736687442059,-500.0,9.976e-05,2]
[348627040,1736687442068,-500.0,9.976e-05,2]
[348627041,1736687442078,-1046.8,9.976e-05,2]
[348627042,1736687442087,-500.0,9.976e-05,2]
[348627043,1736687442096,-500.0,9.976e-05,2]
[348627044,1736687442106,-504.12,9.976e-05,2]
[348627045,1736687442115,-500.0,9.976e-05,2]
[348627046,1736687442124,-551.09,9.976e-05,2]
[348627047,1736687442133,-674.1,9.976e-05,2]
[348627048,1736687442142,-500.0,9.976e-05,2]
[348627049,1736687442151,-541.48,9.976e-05,2]
[348627050,1736687442160,-815.47,9.976e-05,2]
[348627051,1736687442170,-500.0,9.976e-05,2]
[348627052,1736687442180,-992.35,9.976e-05,2]
[348627053,1736687442189,-500.0,9.976e-05,2]
[348627054,1736687442198,-1609.68,9.976e-05,2]
[348627055,1736687442207,-504.73258539,9.976e-05,2]
[348627056,1736687442218,-657.61,9.976e-05,2]
[348627057,1736687442227,-500.0,9.976e-05,2]
[348627058,1736687442237,-500.0,9.976e-05,2]
[348627059,1736687442247,-773.22,9.976e-05,2]
[348627060,1736687442256,-500.0,9.976e-05,2]
[348627061,1736687442265,-508.79242213,9.976e-05,2]
[348627062,1736687442274,-873.83,9.976e-05,2]
[348627063,1736687442285,-500.0,9.976e-05,2]
[348627064,1736687442295,-500.0,9.976e-05,2]
[348627065,1736687442304,-241.23736884,9.976e-05,2]
[348627066,1736687442313,-500.0,9.976e-05,2]
[348627067,1736687442323,-514.72,9.976e-05,2]
[348627068,1736687442332,-500.0,9.976e-05,2]
[348627069,1736687442342,-500.0,9.976e-05,2]
[348627070,1736687442352,-502.16021359,9.976e-05,2]
[348627071,1736687442361,-896.02,9.976e-05,2]
[348627072,1736687442370,-500.0,9.976e-05,2]
[348627073,1736687442379,-500.0,9.976e-05,2]
[348627074,1736687442389,-500.0,9.976e-05,2]
[348627075,1736687442399,-500.0,9.976e-05,2]
[348627076,1736687442409,-500.0,9.976e-05,2]
[348627077,1736687442418,-380.84563025,9.976e-05,2]
[348627078,1736687442427,-506.19805776,9.976e-05,2]
[348627079,1736687442440,-500.0,9.976e-05,2]
[348627080,1736687442449,-660.63,9.976e-05,2]
[348627081,1736687442457,-500.0,9.976e-05,2]
[348627082,1736687442467,-609.95332809,9.976e-05,2]
[348627083,1736687442476,-500.0,9.976e-05,2]
[348627084,1736687442486,-500.0,9.976e-05,2]
[348627085,1736687442495,-500.0,9.976e-05,2]
[348627086,1736687442504,-500.0,9.976e-05,2]
[348627087,1736687442514,-500.0,9.976e-05,2]
[348627088,1736687442523,-332.2963978,9.976e-05,2]
[348627089,1736687442532,-500.0,9.976e-05,2]
[348627090,1736687442541,-921.96,9.976e-05,2]
[348627091,1736687442550,-513.58649727,9.976e-05,2]
[348627092,1736687442559,-1302.32,9.976e-05,2]
[348627093,1736687442568,-500.0,9.976e-05,2]
[348627094,1736687442577,-640.76,9.976e-05,2]
[348627095,1736687442586,-500.0,9.976e-05,2]
[348627096,1736687442596,-508.17501465,9.976e-05,2]
[348627097,1736687442606,-507.96790213,9.976e-05,2]
[348627098,1736687442615,-243.52500233,9.976e-05,2]
[348627099,1736687442624,-572.66,9.976e-05,2]
[348627100,1736687442634,-500.0,9.976e-05,2]
[348627101,1736687442645,-500.0,9.976e-05,2]
[348627102,1736687442654,-500.0,9.976e-05,2]
[348627103,1736687442664,-500.0,9.976e-05,2]
[348627104,1736687442674,-624.21942434,9.976e-05,2]
[348627105,1736687442684,-314.84150211,9.976e-05,2]
[348627106,1736687442693,-500.0,9.976e-05,2]
[348627107,1736687442702,-500.0,9.976e-05,2]
[348627108,1736687442711,-757.44,9.976e-05,2]
[348627109,1736687442722,-338.35049807,9.976e-05,2]
[348627110,1736687442901,-500.0,9.976e-05,2]
[348627111,1736687442911,-500.0,9.976e-05,2]
[348627112,1736687442920,-500.0,9.976e-05,2]
[348627113,1736687442929,-767.94,9.976e-05,2]
[348627114,1736687442939,-500.0,9.976e-05,2]
[348627115,1736687442948,-7212.33,9.976e-05,2]
[348627116,1736687442957,-501.56094458,9.976e-05,2]
[348627117,1736687442966,-854.91,9.976e-05,2]
[348627118,1736687442975,-514.7,9.976e-05,2]
[348627119,1736687442985,-500.0,9.976e-05,2]
[348627120,1736687442994,-504.2774331,9.976e-05,2]
[348627121,1736687443003,-509.34613617,9.976e-05,2]
[348627122,1736687443013,-500.0,9.976e-05,2]
[348627123,1736687443022,-500.0,9.976e-05,2]
[348627124,1736687443032,-500.0,9.976e-05,2]
[348627125,1736687443041,-712.65,9.976e-05,2]
[348627126,1736687443050,-500.0,9.976e-05,2]
[348627127,1736687443059,-824.25,9.976e-05,2]
[348627128,1736687443069,-1448.46,9.976e-05,2]
[348627129,1736687443078,-500.0,9.976e-05,2]
[348627130,1736687443087,-501.89546982,9.976e-05,2]
[348627131,1736687443097,-270.00479095,9.976e-05,2]
[348627132,1736687443109,-502.9229593,9.976e-05,2]
[348627133,1736687443118,-500.0,9.976e-05,2]
[348627134,1736687443127,-406.21044402,9.976e-05,2]
[348627135,1736687443136,-500.0,9.976e-05,2]
[348627136,1736687443146,-693.13,9.976e-05,2]
[348627137,1736687443155,-654.06,9.976e-05,2]
[348627138,1736687443164,-500.0,9.976e-05,2]
[348627139,1736687443173,-500.0,9.976e-05,2]
[348627140,1736687443182,-500.0,9.976e-05,2]
[348627141,1736687443191,-542.03,9.976e-05,2]
[348627142,1736687443200,-1988.84,9.976e-05,2]
[348627143,1736687443209,-503.40657264,9.976e-05,2]
[348627144,1736687443219,-1322.33,9.976e-05,2]
[348627145,1736687443227,-500.0,9.976e-05,2]
[348627146,1736687443237,-500.0,9.976e-05,2]
[348627147,1736687443246,-510.70834855,9.976e-05,2]
[348627148,1736687443255,-500.0,9.976e-05,2]
[348627149,1736687443264,-506.04499215,9.976e-05,2]
[348627150,1736687443273,-500.0,9.976e-05,2]
[348627151,1736687443282,-639.87,9.976e-05,2]
[348627152,1736687443292,-500.0,9.976e-05,2]
[348627153,1736687443301,-500.0,9.976e-05,2]
[348627154,1736687443310,-500.0,9.976e-05,2]
[348627155,1736687443319,-500.0,9.976e-05,2]
[348627156,1736687443328,-500.0,9.976e-05,2]
[348627157,1736687443337,-500.0,9.976e-05,2]
[348627158,1736687443347,-770.31,9.976e-05,2]
[348627159,1736687443356,-500.0,9.976e-05,2]
[348627160,1736687443365,-500.0,9.976e-05,2]
[348627161,1736687443375,-500.0,9.976e-05,2]
[348627162,1736687443384,-500.0,9.976e-05,2]
[348627163,1736687443393,-502.79720333,9.976e-05,2]
[348627164,1736687443402,-614.85,9.976e-05,2]
[348627165,1736687443411,-500.0,9.976e-05,2]
[348627166,1736687443420,-500.0,9.976e-05,2]
[348627167,1736687443429,-746.81,9.976e-05,2]
[348627168,1736687443439,-500.0,9.976e-05,2]
[348627169,1736687443448,-500.0,9.976e-05,2]
[348627170,1736687443461,-508.98469171,9.976e-05,2]
[348627171,1736687443470,-500.0,9.976e-05,2]
[348627172,1736687443479,-1426.02,9.976e-05,2]
[348627173,1736687443489,-278.64269338,9.976e-05,2]
[348627174,1736687443498,-1274.97,9.976e-05,2]
[348627175,1736687443507,-503.41105167,9.976e-05,2]
[348627176,1736687443516,-583.79,9.976e-05,2]
[348627177,1736687443526,-993.05,9.976e-05,2]
[348627178,1736687443536,-500.0,9.976e-05,2]
[348627179,1736687443545,-500.0,9.976e-05,2]
[348627180,1736687443555,-970.51,9.976e-05,2]
[348627181,1736687443564,-512.3336985,9.976e-05,2]
[348627182,1736687443574,-500.0,9.976e-05,2]
[348627183,1736687443583,-942.74,9.976e-05,2]
[348627184,1736687443592,-500.0,9.976e-05,2]
[348627185,1736687443603,-500.0,9.976e-05,2]
[348627186,1736687443611,-500.0,9.976e-05,2]
[348627187,1736687443621,-500.0,9.976e-05,2]
[348627188,1736687443630,-503.13272719,9.976e-05,2]
[348627189,1736687443641,-500.0,9.976e-05,2]
[348627190,1736687443651,-394.49609663,9.976e-05,2]
[348627191,1736687443660,-4681.6,9.976e-05,2]
[348627192,1736687443670,-489.72890854,9.976e-05,2]
[348627193,1736687443679,-501.75497315,9.976e-05,2]
[348627194,1736687443688,-987.07,9.976e-05,2]
[348627195,1736687443698,-519.13540174,9.976e-05,2]
[348627196,1736687443707,-500.0,9.976e-05,2]
[348627197,1736687443717,-505.3823289,9.976e-05,2]
[348627199,1736687443726,-638.88,9.976e-05,2]
[348627201,1736687443736,-500.0,9.976e-05,2]
[348627203,1736687443745,-637.45,9.976e-05,2]
[348627205,1736687443754,-501.70513783,9.976e-05,2]
[348627207,1736687443764,-3761.06,9.976e-05,2]
[348627209,1736687443773,-492.9,9.976e-05,2]
[348627211,1736687443782,-669.48,9.976e-05,2]
[348627212,1736687443791,-719.83,9.976e-05,2]
[348627213,1736687443800,-500.0,9.976e-05,2]
[348627214,1736687443810,-500.0,9.976e-05,2]
[348627215,1736687443821,-500.0,9.976e-05,2]
[348627216,1736687443831,-548.91136803,9.976e-05,2]
[348627218,1736687443840,-566.69,9.976e-05,2]
[348627220,1736687443849,-500.0,9.976e-05,2]
[348627221,1736687443858,-500.0,9.976e-05,2]
[348627222,1736687443868,-643.5351498,9.976e-05,2]
[348627223,1736687443877,-500.0,9.976e-05,2]
[348627224,1736687443886,-500.0,9.976e-05,2]
[348627225,1736687443895,-500.0,9.976e-05,2]
[348627226,1736687443905,-849.38,9.976e-05,2]
[348627227,1736687443914,-1658.72,9.976e-05,2]
[348627228,1736687443923,-500.0,9.976e-05,2]
[348627229,1736687443932,-3194.27,9.976e-05,2]
[348627230,1736687443942,-500.0,9.976e-05,2]
[348627231,1736687443951,-500.0,9.976e-05,2]
[348627232,1736687443960,-500.0,9.976e-05,2]
[348627233,1736687443969,-500.0,9.976e-05,2]
[348627234,1736687443979,-500.0,9.976e-05,2]
[348627235,1736687443988,-666.01,9.976e-05,2]
[348627236,1736687443998,-1706.7,9.976e-05,2]
[348627237,1736687444007,-500.0,9.976e-05,2]
[348627238,1736687444017,-518.16,9.976e-05,2]
[348627239,1736687444026,-757.74,9.976e-05,2]
[348627240,1736687444035,-500.0,9.976e-05,2]
[348627241,1736687444044,-500.0,9.976e-05,2]
[348627242,1736687444054,-459.15574015,9.976e-05,2]
[348627243,1736687444063,-500.0,9.976e-05,2]
[348627244,1736687444073,-502.13706719,9.976e-05,2]
[348627245,1736687444082,-500.0,9.976e-05,2]
[348627246,1736687444092,-3227.64,9.976e-05,2]
[348627247,1736687444103,-871.3,9.976e-05,2]
[348627248,1736687444112,-500.0,9.976e-05,2]
[348627249,1736687444122,-834.89,9.976e-05,2]
[348627250,1736687444132,-974.64,9.976e-05,2]
[348627251,1736687444141,-500.0,9.976e-05,2]
[348627252,1736687444153,-500.0,9.976e-05,2]
[348627253,1736687444163,-500.0,9.976e-05,2]
[348627254,1736687444173,-500.0,9.976e-05,2]
[348627255,1736687444183,-500.0,9.976e-05,2]
[348627256,1736687444193,-500.0,9.976e-05,2]
[348627257,1736687444203,-2608.36,9.976e-05,2]
[348627258,1736687444212,-500.0,9.976e-05,2]
[348627259,1736687444221,-656.6,9.976e-05,2]
[348627260,1736687444231,-763.28,9.976e-05,2]
[348627261,1736687444240,-500.0,9.976e-05,2]
[348627262,1736687444249,-500.0,9.976e-05,2]
[348627263,1736687444259,-500.0,9.976e-05,2]
[348627264,1736687444268,-500.0,9.976e-05,2]
[348627265,1736687444278,-634.72,9.976e-05,2]
[348627266,1736687444287,-500.0,9.976e-05,2]
[348627267,1736687444297,-846.95,9.976e-05,2]
[348627268,1736687444307,-2380.94,9.976e-05,2]
[348627269,1736687444317,-590.82,9.976e-05,2]
[348627270,1736687444326,-500.0,9.976e-05,2]
[348627271,1736687444335,-501.30042216,9.976e-05,2]
[348627272,1736687444345,-500.0,9.976e-05,2]
[348627273,1736687444358,-500.0,9.976e-05,2]
[348627274,1736687444368,-500.0,9.976e-05,2]
[348627275,1736687444377,-156.26067621,9.976e-05,2]
[348627276,1736687444387,-1080.76,9.977e-05,2]
[348627277,1736687444396,-578.77,9.977e-05,2]
[348627278,1736687444406,-1205.84,9.977e-05,2]
[348627279,1736687444415,-838.25,9.977e-05,2]
[348627280,1736687444425,-1274.88,9.977e-05,2]
[348627281,1736687444435,-1487.03,9.977e-05,2]
[348627282,1736687444444,-1664.6,9.977e-05,2]
[348627283,1736687444457,-2533.6,9.977e-05,2]
[348627284,1736687444467,-7005.56,9.977e-05,2]
[348627285,1736687444476,-156.26067621,9.978e-05,2]
[348627286,1736687444485,-1182.99,9.978e-05,2]
[348627287,1736687444495,-983.41,9.978e-05,2]
[348627288,1736687444504,-835.85,9.978e-05,2]
[348627289,1736687444514,-853.71,9.978e-05,2]
[348627290,1736687444524,-2631.78,9.978e-05,2]
[348627291,1736687444534,-791.88,9.978e-05,2]
[348627292,1736687444544,-500.0,9.978e-05,2]
[348627293,1736687444553,-1032.35,9.978e-05,2]
[348627294,1736687444563,-1322.58,9.978e-05,2]
[348627295,1736687444573,-500.0,9.978e-05,2]
[348627296,1736687444582,-1762.11,9.979e-05,2]
[348627297,1736687444592,-500.0,9.979e-05,2]
[348627298,1736687444605,-1000.0,9.979e-05,2]
[348627299,1736687444614,-1051.68,9.979e-05,2]
[348627300,1736687444624,-500.0,9.979e-05,2]
[348627301,1736687444633,-2342.76,9.979e-05,2]
[348627302,1736687444642,-2167.17,9.979e-05,2]
[348627303,1736687444652,-156.26067621,9.979e-05,2]
[348627304,1736687444661,-107528.06920458,9.98e-05,2]
[348627305,1736687444670,-156.26067621,9.981e-05,2]
[348627306,1736687444680,-156.26067621,9.982e-05,2]
[348627307,1736687444689,-4330.751,9.989e-05,2]
[348627308,1736687444698,-165.97,9.989e-05,2]
[348627309,1736687444707,-542.87,9.99e-05,2]
[348627310,1736687444717,-1935.4594697,9.992e-05,2]
[348627311,1736687444726,-913.4424733,9.992e-05,2]
[348627312,1736687444736,-976.6992412,9.992e-05,2]
[348627313,1736687444744,-608.5198543,9.992e-05,2]
[348627314,1736687444754,-461.2677843,9.992e-05,2]
[348627315,1736687444764,-1087.3023578,9.992e-05,2]
[348627316,1736687444774,-500.0,9.997e-05,2]
[348627317,1736687444783,-500.0,9.998e-05,2]
[348627318,1736687444792,-7212.33,9.998e-05,2]
[348627319,1736687444802,-263973.81666181,9.999e-05,2]
[348627320,1736687444811,-1160.28520055,9.999e-05,3]
[348627321,1736687444821,-1160.28520056,9.999e-05,3]
[348627322,1736687444830,-655.4,9.999e-05,2]
[348627323,1736687444840,-500.0,9.999e-05,2]
[348627324,1736687444851,-3107.34,9.999e-05,2]
[348627325,1736687444861,-500.0,9.999e-05,2]
[348627326,1736687444870,-1145.42,9.999e-05,2]
[348627327,1736687444879,-573.65,9.999e-05,2]
[348627328,1736687444888,-7212.33,9.999e-05,2]
[348627329,1736687444898,-7212.33,9.999e-05,2]
[348627330,1736687444908,-7212.33,9.999e-05,2]
[348627331,1736687444917,-7212.33,9.999e-05,2]
[348627332,1736687444927,-7212.33,9.999e-05,2]
[348627333,1736687444936,-7212.33,9.999e-05,2]
[348627334,1736687444945,-7212.33,9.999e-05,2]
[348627335,1736687444955,-7212.33,9.999e-05,2]
[348627336,1736687444964,-7212.33,9.999e-05,2]
[348627337,1736687444973,-7212.33,9.999e-05,2]
[348627338,1736687444983,-7212.33,9.999e-05,2]
[348627339,1736687444992,-7212.33,9.999e-05,2]
[348627340,1736687445001,-7212.33,9.999e-05,2]
[348627341,1736687445011,-7212.33,9.999e-05,2]
[348627342,1736687445020,-7212.33,9.999e-05,2]
[348627343,1736687445030,-7212.33,9.999e-05,2]
[348627344,1736687445039,-7212.33,9.999e-05,2]
[348627345,1736687445101,-7212.33,9.999e-05,2]
[348627346,1736687445111,-7212.33,9.999e-05,2]
[348627347,1736687445120,-7212.33,9.999e-05,2]
[348627348,1736687445131,-7212.33,9.999e-05,2]
[348627349,1736687445140,-7212.56429767,9.999e-05,2]
[348627350,1736687445150,-1156.8,9.999e-05,2]
[348627351,1736687445159,-1156.8,9.999e-05,2]
[348627352,1736687445169,-1162.13,9.999e-05,2]
[348627353,1736687445178,-1484.37,9.999e-05,2]
[348627354,1736687445188,-1097.21,9.999e-05,2]
[348627355,1736687445198,-2569.96,9.999e-05,2]
[348627356,1736687445207,-1439.46,9.999e-05,2]
[348627357,1736687445217,-2537.12,9.999e-05,2]
[348627358,1736687445226,-3034.37,9.999e-05,2]
[348627359,1736687445235,-500.0,9.999e-05,2]
[348627360,1736687445244,-205.59955707,9.999e-05,2]
[348627361,1736687445253,-1014.0,0.0001,2]
[348627362,1736687445262,-1965257.91372865,0.0001,2]
[348627365,1736687446411,-1775.60793695,9.8e-05,2]
[348627375,1736687446882,-4657.23035305,9.8e-05,2]
[348627376,1736687446891,-1515.63,9.976e-05,2]
[348627377,1736687446901,-437.19,9.98e-05,2]
[348627378,1736687446910,-156.26067621,9.983e-05,2]
[348627379,1736687446920,-24002.68802293,0.0001,2]
[348627380,1736687446932,-42142.84061232,0.0001,2]
[348627381,1736687446943,-4763.6997597,0.0001,2]
[348627382,1736687446955,-1257.40615,0.0001,2]
[348627383,1736687446967,-2514.95466366,0.0001,2]
[348627384,1736687549733,2000.0,0.00023,120]
[348627386,1736687828159,2000.0,0.00023,120]
[348627387,1736687856452,3000.0,0.00023,120]
[348627388,1736687877478,5000.0,0.00023,120]
[348627389,1736687900926,2500.0,0.00023,120]
[348627390,1736687924252,7679.0,0.00023,120]
[348627392,1736688113452,1038.84,8.219e-05,2]
[348627393,1736688259853,250.0,8.48e-05,2]
[348627394,1736688335559,275.16771606,8e-05,2]
[348627398,1736688466204,588.04,9.999e-05,7]
[348627413,1736688631562,-1000.0,8.834e-05,2]
[348627414,1736688631571,-1686.07,8.85e-05,2]
[348627415,1736688631581,-248.59,8.855e-05,2]
[348627416,1736688631590,-682.44,8.861e-05,2]
[348627417,1736688631599,-250.0,8.896e-05,2]
[348627418,1736688631609,-2000.0,8.931e-05,2]
[348627419,1736688631619,-250.0,8.947e-05,2]
[348627420,1736688631627,-190.49,8.977e-05,2]
[348627421,1736688631637,-500.0,9e-05,2]
[348627422,1736688631646,-150.0,9e-05,2]
[348627423,1736688631655,-150.0,9e-05,2]
[348627424,1736688631665,-150.0,9e-05,2]
[348627425,1736688631674,-437.19,9.014e-05,2]
[348627426,1736688631683,-437.19,9.014e-05,2]
[348627427,1736688631693,-437.19,9.014e-05,2]
[348627428,1736688631702,-437.19,9.014e-05,2]
[348627429,1736688631711,-437.19,9.014e-05,2]
[348627430,1736688631720,-437.19,9.014e-05,2]
[348627431,1736688631728,-437.19,9.014e-05,2]
[348627432,1736688631738,-437.19,9.014e-05,2]
[348627433,1736688631747,-167.48,9.176e-05,2]
[348627434,1736688631756,-259.3627,9.532e-05,2]
[348627435,1736688631765,-151.06874168,9.632e-05,2]
[348627436,1736688631777,-435.51999,9.632e-05,2]
[348627437,1736688631788,-6327.48126832,9.632e-05,2]
[348627438,1736688631797,-361.34951508,9.677e-05,2]
[348627439,1736688631807,-434.13,9.836e-05,2]
[348627440,1736688631816,-3405.69833574,9.876e-05,2]
[348627441,1736688631833,-371.35,9.876e-05,2]
[348627442,1736688631844,-1222.95166426,9.876e-05,2]
[348627443,1736688631853,-150.0,9.899e-05,2]
[348627444,1736688631862,-228.09545305,9.9e-05,2]
[348627445,1736688631887,-957.55557787,9.9e-05,2]
[348627446,1736688631898,-745.6524641,9.9e-05,2]
[348627466,1736688637451,-5305.36144738,9.9e-05,2]
[348627467,1736688637463,-747.72488862,9.9e-05,2]
[348627468,1736688637474,-3250.66714693,9.9e-05,2]
[348627469,1736688637572,-1094.72657998,9.9e-05,2]
[348627470,1736688637584,-3992.5,9.9e-05,2]
[348627471,1736688637594,-3395.61564401,9.9e-05,2]
[348627472,1736688637605,-303.2257835,9.9e-05,2]
[348627473,1736688637621,-712.69122961,9.9e-05,2]
[348627474,1736688637630,-287.30877039,9.934e-05,2]
[348627475,1736688637698,-2817.44114602,9.934e-05,2]
[348627476,1736688637707,-1000.0,9.938e-05,2]
[348627477,1736688637716,-248.59,9.962e-05,2]
[348627478,1736688637726,-3104.74991641,9.969e-05,2]
[348627479,1736688637735,-500.0,9.974e-05,2]
[348627480,1736688637745,-2645.9,9.974e-05,2]
[348627481,1736688637756,-3587.89,9.974e-05,2]
[348627482,1736688637766,-2013.34,9.974e-05,2]
[348627483,1736688637775,-500.0,9.974e-05,2]
[348627484,1736688637784,-1407.98,9.974e-05,2]
[348627485,1736688637794,-3377.14,9.974e-05,2]
[348627486,1736688637807,-513.63,9.974e-05,2]
[348627487,1736688637818,-1189.35,9.974e-05,2]
[348627489,1736688637827,-606.66,9.974e-05,2]
[348627491,1736688637836,-1360.64,9.974e-05,2]
[348627493,1736688637845,-500.0,9.974e-05,2]
[348627495,1736688637855,-652.03,9.974e-05,2]
[348627496,1736688637864,-500.0,9.974e-05,2]
[348627497,1736688637874,-500.0,9.974e-05,2]
[348627498,1736688637883,-202.40737307,9.974e-05,2]
[348627499,1736688637893,-519.26,9.974e-05,2]
[348627500,1736688637903,-1985.71,9.974e-05,2]
[348627501,1736688637912,-159.14152261,9.974e-05,2]
[348627502,1736688637922,-1032.28,9.974e-05,2]
[348627503,1736688637930,-500.0,9.974e-05,2]
[348627504,1736688637940,-621.31493695,9.974e-05,2]
[348627505,1736688637951,-500.0,9.974e-05,2]
[348627506,1736688637960,-616.24,9.974e-05,2]
[348627507,1736688637970,-500.0,9.974e-05,2]
[348627508,1736688637981,-500.0,9.975e-05,2]
[348627509,1736688637991,-2544.93,9.975e-05,2]
[348627510,1736688638001,-1482.03,9.975e-05,2]
[348627511,1736688638011,-2497.97,9.975e-05,2]
[348627512,1736688638019,-3138.86,9.975e-05,2]
[348627513,1736688638029,-500.0,9.975e-05,2]
[348627514,1736688638038,-590.21,9.975e-05,2]
[348627515,1736688638048,-500.0,9.975e-05,2]
[348627516,1736688638058,-500.0,9.975e-05,2]
[348627517,1736688638068,-500.0,9.975e-05,2]
[348627518,1736688638079,-712.47,9.975e-05,2]
[348627519,1736688638088,-561.79,9.975e-05,2]
[348627520,1736688638097,-1442.39,9.975e-05,2]
[348627521,1736688638105,-500.0,9.975e-05,2]
[348627522,1736688638114,-278.63939574,9.975e-05,2]
[348627523,1736688638123,-773.45,9.975e-05,2]
[348627524,1736688638132,-1070.02,9.975e-05,2]
[348627525,1736688638141,-500.0,9.975e-05,2]
[348627526,1736688638150,-845.96,9.975e-05,2]
[348627527,1736688638159,-500.0,9.975e-05,2]
[348627528,1736688638168,-663.08,9.975e-05,2]
[348627529,1736688638178,-500.0,9.975e-05,2]
[348627530,1736688638189,-905.08,9.975e-05,2]
[348627531,1736688638202,-500.0,9.975e-05,2]
[348627532,1736688638211,-638.35,9.975e-05,2]
[348627533,1736688638219,-500.0,9.975e-05,2]
[348627534,1736688638229,-517.49,9.975e-05,2]
[348627535,1736688638239,-3551.65,9.975e-05,2]